fUSD/lending_fUSD_20240602
["ID","MTS","AMOUNT","RATE_DAILY","PERIOD"]
[328409704,1717359046117,-151.0,0.00029789,7]
[328409705,1717359046126,-585.685009,0.00029789,7]
[328409706,1717359046135,-151.0,0.00029789,7]
[328409707,1717359046145,-585.685009,0.00029789,7]
[328409708,1717359046154,-4432.542417,0.000298,2]
[328409709,1717359046163,-1300.0,0.000298,10]
[328409710,1717359046172,-2554.224414,0.000298,7]
[328409711,1717359046181,-2554.224414,0.000298,7]
[328409712,1717359046190,-151.0,0.000298,7]
[328409713,1717359046199,-151.0,0.000298,7]
[328409714,1717359046208,-1742.745998,0.000298,7]
[328409715,1717359046217,-151.0,0.000298,7]
[328409716,1717359046227,-1742.745998,0.000298,7]
[328409717,1717359046236,-151.0,0.000298,7]
[328409718,1717359046245,-204.519669,0.000298,7]
[328409719,1717359046254,-240.581603,0.000298,7]
[328409720,1717359046263,-204.519669,0.000298,7]
[328409721,1717359046271,-151.0,0.000298,7]
[328409722,1717359046280,-240.581603,0.000298,7]
[328409723,1717359046290,-2278.514732,0.000298,7]
[328409724,1717359046299,-2278.514732,0.000298,7]
[328409725,1717359046307,-300.0,0.00029803,2]
[328409726,1717359046317,-150.0,0.00029811,2]
[328409727,1717359046326,-150.0,0.00029815,2]
[328409728,1717359046337,-300.0,0.00029826,2]
[328409729,1717359046346,-150.0,0.00029831,2]
[328409730,1717359046355,-150.0,0.00029844,2]
[328409731,1717359046364,-888.16,0.00029848,2]
[328409732,1717359046373,-1500.0,0.0002985,2]
[328409733,1717359046383,-150.0,0.0002985,2]
[328409734,1717359046392,-150.0,0.00029863,2]
[328409735,1717359046402,-150.0,0.00029863,2]
[328409736,1717359046410,-150.0,0.00029863,2]
[328409737,1717359046419,-300.0,0.00029863,2]
[328409738,1717359046429,-150.0,0.00029863,2]
[328409739,1717359046438,-150.0,0.00029863,2]
[328409740,1717359046447,-150.0,0.00029863,2]
[328409741,1717359046457,-150.0,0.00029863,2]
[328409743,1717359046466,-150.0,0.00029863,2]
[328409745,1717359046475,-150.0,0.00029863,2]
[328409747,1717359046484,-150.0,0.00029863,2]
[328409749,1717359046493,-150.0,0.00029863,2]
[328409751,1717359046502,-150.0,0.00029863,2]
[328409753,1717359046511,-150.0,0.00029863,2]
[328409755,1717359046520,-902.70024293,0.00029886,2]
[328409757,1717359046529,-1204.4217061,0.00029889,2]
[328409759,1717359046538,-150.0,0.0002989,2]
[328409761,1717359046548,-151.0,0.00029899,7]
[328409763,1717359046556,-172.972946,0.00029899,7]
[328409765,1717359046565,-172.972946,0.00029899,7]
[328409766,1717359046574,-151.0,0.00029899,7]
[328409769,1717359046585,-151.0,0.00029899,7]
[328409770,1717359046594,-151.0,0.00029899,7]
[328409773,1717359046604,-800.418302,0.00029899,7]
[328409775,1717359046614,-151.0,0.00029899,7]
[328409777,1717359046624,-800.418302,0.00029899,7]
[328409779,1717359046634,-696.759044,0.00029899,7]
[328409781,1717359046644,-218.345752,0.00029899,7]
[328409783,1717359046654,-696.759044,0.00029899,7]
[328409785,1717359046663,-218.345752,0.00029899,7]
[328409787,1717359046673,-151.0,0.00029899,7]
[328409789,1717359046682,-411.99597,0.00029899,7]
[328409791,1717359046691,-411.99597,0.00029899,7]
[328409793,1717359046700,-25974.02771646,0.000299,2]
[328409795,1717359046709,-2009.24235392,0.000299,2]
[328409797,1717359046718,-165.49493537,0.000299,2]
[328409799,1717359046727,-838.89643382,0.000299,2]
[328409801,1717359046736,-1700.0,0.000299,10]
[328409803,1717359046745,-1522.6783109,0.000299,2]
[328409804,1717359046754,-1500.0,0.00029918,2]
[328409807,1717359046766,-150.0,0.00029921,2]
[328409809,1717359046777,-150.0,0.00029936,2]
[328409811,1717359046786,-150.0,0.00029949,2]
[328409813,1717359046795,-300.0,0.00029967,2]
[328409815,1717359046805,-150.0,0.00029981,2]
[328409817,1717359046815,-500.0,0.00029982,3]
[328409819,1717359046825,-170.5688747,0.0002999,2]
[328409821,1717359046835,-500.0,0.00029991,3]
[328409823,1717359046847,-45335.64992238,0.00029997,2]
[328409825,1717359046856,-26779.39161688,0.0003,11]
[328409896,1717359047760,-40657.28281091,0.0003,11]
[328409898,1717359047775,-1785.71493991,0.0003,11]
[328409902,1717359047810,-6922.80022407,0.0003,11]
[328409910,1717359048913,-393000.95688816,0.0003,11]
[328409911,1717359048923,-5702.70709465,0.0003,2]
[328409912,1717359048932,-17055.58564348,0.0003,2]
[328409913,1717359048943,-5000.0,0.0003,7]
[328409914,1717359048953,-1234.6913958,0.0003,2]
[328409915,1717359048964,-36338.3896186,0.0003,2]
[328409916,1717359048973,-33500.0,0.0003,14]
[328409917,1717359048983,-1000.0,0.0003,2]
[328409918,1717359048993,-963960.92076919,0.0003,3]
[328409919,1717359049005,-11396.92205981,0.0003,3]
[328409920,1717359049522,-922.85034322,0.00022899,2]
[328409921,1717359049533,-336.84246256,0.00022899,2]
[328409922,1717359049543,-150.0,0.00029763,2]
[328409923,1717359049552,-150.0,0.0002983,2]
[328409924,1717359049561,-150.0,0.00029879,2]
[328409925,1717359049571,-150.0,0.00029901,2]
[328409926,1717359049581,-31724.99324144,0.0003,3]
[328409927,1717359049592,-12425.12997139,0.0003,3]
[328409928,1717359049603,-13928.70854898,0.0003,3]
[328409929,1717359049614,-4392.25052,0.0003,3]
[328409930,1717359049625,-235162.43776468,0.0003,3]
[328409931,1717359049636,-12700.0,0.0003,3]
[328409958,1717360232272,-2366.03746575,0.00013765,2]
[328409959,1717360232281,-718.53750666,0.00013766,2]
[328409960,1717360232291,-251.29761604,0.00013767,2]
[328409961,1717360232301,-150.0,0.00013799,2]
[328409962,1717360232310,-364.1012,0.000138,2]
[328409963,1717360232319,-4892.19642149,0.000138,2]
[328409964,1717360232331,-2447.84707851,0.000138,2]
[328409965,1717360232341,-930.65713684,0.00013899,2]
[328409966,1717360232351,-210.0,0.00015179,2]
[328409967,1717360232360,-119.31045934,0.000157,2]
[328409968,1717360232370,-893.88077685,0.000157,2]
[328409969,1717360232381,-463.7839458,0.000157,2]
[328409970,1717360232393,-406.61870479,0.000157,2]
[328409971,1717360232419,-207.40611322,0.000157,2]
[328409972,1717360232428,-129.22580678,0.000157,2]
[328409973,1717360232476,-350.63988,0.000157,2]
[328409974,1717360232500,-153.13431322,0.000157,2]
[328409975,1717360232509,-499.99,0.00017534,2]
[328409976,1717360232519,-181.85,0.00017808,2]
[328409977,1717360232528,-863.57303464,0.0002,2]
[328409978,1717360232538,-187.27038949,0.00020178,2]
[328409979,1717360232548,-1010.14454915,0.00020183,2]
[328409980,1717360232558,-537.9,0.00020184,2]
[328409981,1717360232567,-301.67861621,0.00020575,2]
[328409982,1717360232576,-1246.26126998,0.00020576,2]
[328409983,1717360232585,-483.24974536,0.00020576,2]
[328409985,1717360232596,-401.0821182,0.00020577,2]
[328409987,1717360232604,-26729.27296375,0.00020578,2]
[328409989,1717360232615,-310.0,0.00020578,2]
[328410016,1717360238490,-1956.0,0.00020578,2]
[328410017,1717360238545,-941.60252869,0.00020578,2]
[328410018,1717360238556,-5561.61424271,0.00020578,2]
[328410019,1717360238567,-5694.20296669,0.00020578,2]
[328410020,1717360238636,-6802.4,0.00020578,2]
[328410021,1717360238671,-9727.80000263,0.00020578,2]
[328410091,1717360240942,-31456.33507057,0.00020578,2]
[328410092,1717360240952,-5765.0,0.0002058,2]
[328410093,1717360240961,-3435.94774034,0.0002058,2]
[328410128,1717360243678,-3122.75717201,0.0002058,2]
[328410131,1717360243694,-5992.69439996,0.0002058,2]
[328410605,1717360430677,379.18009225,0.00022,30]
[328410606,1717360431501,658.21471579,0.000121,30]
[328410608,1717360622749,34722.78989246,0.00012,30]
[328410609,1717360638332,4940.24709221,0.0003,30]
[328410610,1717360872320,863.0,0.000205,30]
[328410624,1717361431536,-2366.03746575,0.00012098,2]
[328410625,1717361431546,-2227.75244418,0.00012099,2]
[328410626,1717361431556,-2438.18025502,0.00016847,2]
[328410627,1717361431626,-1712.57125797,0.00016847,2]
[328410628,1717361431638,-768.94693813,0.00016847,2]
[328410629,1717361431707,-2464.76794777,0.00016847,2]
[328410630,1717361431853,-2243.85934843,0.00016847,2]
[328410631,1717361431864,-511.0,0.00017312,2]
[328410632,1717361431874,-851.94037832,0.00018952,2]
[328410663,1717361437756,-530.09962168,0.00018952,2]
[328410664,1717361437766,-1782.06,0.00018952,2]
[328410665,1717361437780,-1000.0,0.00019053,2]
[328410666,1717361437789,-718.77,0.00019072,2]
[328410667,1717361437799,-191.14,0.00019122,2]
[328410668,1717361437808,-250.0,0.00019138,2]
[328410669,1717361437819,-200.0,0.00019177,2]
[328410670,1717361437828,-3316.55,0.000192,2]
[328410671,1717361437837,-250.0,0.00019225,2]
[328410672,1717361437847,-166.73,0.00019383,2]
[328410673,1717361437857,-150.0,0.00019452,2]
[328410674,1717361437866,-289.44,0.00019479,2]
[328410675,1717361437875,-227.07,0.00019479,2]
[328410676,1717361437885,-1210.01307832,0.00019568,2]
[328410677,1717361437896,-1005.74256029,0.00019568,2]
[328410680,1717361437927,-5786.33816001,0.00019568,2]
[328410829,1717361442616,-3157.93155949,0.00019568,2]
[328410834,1717361446579,-256.16530737,0.00019568,2]
[328410835,1717361446590,-264.76535094,0.00019568,2]
[328410836,1717361446602,-315.02007423,0.00019568,2]
[328410837,1717361446613,-890.38128392,0.00019568,2]
[328410838,1717361446624,-3156.19607882,0.00019568,2]
[328410839,1717361446635,-1085.13554661,0.00019568,2]
[328410840,1717361446644,-511.0,0.00019576,2]
[328410841,1717361446653,-155.87,0.00019714,2]
[328410842,1717361446662,-576.35916551,0.0002,10]
[328410843,1717361446672,-1010.14454915,0.0002,2]
[328410844,1717361446681,-187.27038949,0.00020294,2]
[328410845,1717361446690,-155.0,0.00020295,2]
[328410846,1717361446700,-178.49,0.00020326,2]
[328410847,1717361446709,-652.6413,0.0002048,2]
[328410848,1717361446718,-428.62289435,0.0002048,2]
[328410849,1717361446730,-2071.37710565,0.0002048,2]
[328410850,1717361446739,-340.79356082,0.0002048,2]
[328410851,1717361446748,-500.0,0.000205,2]
[328410852,1717361446758,-1045.85270731,0.000205,2]
[328410853,1717361446767,-168.90590536,0.000205,2]
[328410854,1717361446780,-37549.10402596,0.000205,2]
[328410855,1717361446790,-257.70349441,0.000205,2]
[328410856,1717361446799,-299.43095012,0.000205,2]
[328410857,1717361446808,-1041.43553374,0.000205,2]
[328410858,1717361446817,-155.0,0.000205,2]
[328410859,1717361446826,-446.37732156,0.000205,2]
[328410860,1717361446835,-717.97599258,0.00020578,2]
[328410861,1717361446845,-189.0975456,0.00020578,2]
[328410862,1717361446854,-585.5884133,0.00020579,2]
[328410863,1717361446863,-3940.42130238,0.00020579,2]
[328410864,1717361446872,-29157.40591934,0.0002058,2]
[328410865,1717361447330,-37936.39225218,0.0002058,2]
[328410866,1717361447342,-38960.71915507,0.0002058,2]
[328410867,1717361447354,-3587.07033406,0.0002058,2]
[328410868,1717361447363,-155.89027,0.0002058,2]
[328410869,1717361447372,-1000.0,0.00021434,2]
[328410870,1717361447381,-173.16,0.00021459,2]
[328410871,1717361447391,-500.0,0.00021658,2]
[328410872,1717361447400,-1852.42,0.00021665,2]
[328410873,1717361447410,-511.0,0.0002184,2]
[328410874,1717361447419,-250.0,0.00021918,2]
[328410875,1717361447428,-368.91,0.00021923,2]
[328410876,1717361447437,-789.37013607,0.00022,2]
[328410877,1717361447446,-289.44,0.00022219,2]
[328410878,1717361447456,-340.79356079,0.00022955,2]
[328410879,1717361447465,-1000.0,0.00023816,2]
[328410880,1717361447474,-511.0,0.00024104,2]
[328410881,1717361447484,-2127.0,0.00024194,2]
[328410882,1717361447493,-180.0,0.0002423,2]
[328410883,1717361447502,-254.427619,0.0002434,2]
[328410884,1717361447511,-170.1,0.00024384,2]
[328410885,1717361447520,-150.76,0.00024384,2]
[328410886,1717361447530,-169.47,0.00024384,2]
[328410887,1717361447540,-157.01,0.00024384,2]
[328410888,1717361447549,-11718.0,0.000245,5]
[328410889,1717361447558,-254.427619,0.00024644,2]
[328410890,1717361447567,-167.77928678,0.00024798,2]
[328410891,1717361447576,-167.77928676,0.00024798,2]
[328410892,1717361447585,-270.38127544,0.00024799,2]
[328410893,1717361447595,-270.38127544,0.00024799,2]
[328410894,1717361447604,-270.38127544,0.00024799,2]
[328410895,1717361447613,-270.38127544,0.00024799,2]
[328410896,1717361447622,-6786.64428082,0.000249,2]
[328410897,1717361447631,-208.93391656,0.000249,2]
[328410898,1717361590868,200.0,0.0003116,120]
[328410899,1717361591321,200.0,0.00031999,120]
[328410900,1717361665899,50000.0,0.00031,30]
[328410901,1717362095854,50000.0,0.00031,30]
[328410902,1717362234330,293.84135012,0.00032,90]
[328410903,1717362506311,4188.82,0.00031,30]
[328410913,1717362631840,-155.0,0.00011957,2]
[328410914,1717362631849,-155.0,0.00011958,2]
[328410915,1717362631858,-940.66738669,0.00011966,2]
[328410916,1717362631867,-3523.90368008,0.00011998,2]
[328410917,1717362632213,-1524.10623217,0.00011998,2]
[328410918,1717362632224,-426.4888427,0.00011998,2]
[328410919,1717362632244,-308.4,0.00011998,2]
[328410920,1717362632266,-1.10029097,0.00011998,2]
[328410921,1717362632278,-683.02046041,0.00011998,2]
[328410922,1717362632290,-2496.72219367,0.00011998,2]
[328410923,1717362632299,-2500.0,0.00013483,2]
[328410924,1717362632308,-408.8,0.00017581,2]
[328410925,1717362632317,-2500.0,0.00018842,2]
[328410926,1717362632326,-1327.38,0.00018842,6]
[328410927,1717362632336,-397.90257015,0.00018926,2]
[328410928,1717362632345,-92844.27256858,0.00018932,2]
[328410929,1717362632355,-155.0,0.00018951,2]
[328410930,1717362632364,-307.01602266,0.00018951,2]
[328410931,1717362632374,-2169.72319139,0.00018951,2]
[328410932,1717362632383,-226.46885747,0.00018952,2]
[328410933,1717362632392,-6444.48742283,0.00018952,2]
[328410934,1717362632402,-105738.25395249,0.00018952,2]
[328410949,1717362637921,-18822.12570969,0.00018952,2]
[328410950,1717362637931,-400.0,0.00019026,2]
[328410951,1717362637940,-250.0,0.00019273,2]
[328410952,1717362637950,-250.0,0.00019462,2]
[328410953,1717362637960,-287.44,0.00019697,2]
[328410954,1717362637971,-408.8,0.00019845,2]
[328410955,1717362637981,-1010.14454915,0.0002,2]
[328410956,1717362637991,-384.23944367,0.0002,10]
[328410957,1717362638001,-155.0,0.0002,4]
[328410958,1717362638011,-600.0,0.00020243,2]
[328410959,1717362638020,-155.38754712,0.00020499,2]
[328410960,1717362638030,-277.83254392,0.00020499,2]
[328410961,1717362638039,-1361.5753028,0.000205,2]
[328410962,1717362638050,-400.0,0.00021405,2]
[328410963,1717362638059,-397.90257012,0.0002179,2]
[328410964,1717362638068,-250.0,0.00021918,2]
[328410965,1717362638077,-307.42,0.00021918,2]
[328410966,1717362638087,-789.37013607,0.00022,2]
[328410967,1717362638097,-408.8,0.00022109,2]
[328410968,1717362638106,-600.0,0.00022774,2]
[328410969,1717362638115,-400.0,0.00023783,2]
[328410970,1717362638125,-4597.85,0.00024174,2]
[328410971,1717362638134,-4417.99,0.00024174,2]
[328410972,1717362638144,-1324.58,0.00024174,2]
[328410973,1717362638153,-180.0,0.0002423,2]
[328410974,1717362638163,-408.8,0.00024373,2]
[328410975,1717362638172,-475.54,0.00024384,2]
[328410976,1717362638182,-161.59,0.00024384,2]
[328410977,1717362638191,-397.90257012,0.00024653,2]
[328410978,1717362638201,-167.77928676,0.00024798,2]
[328410979,1717362638211,-162.2287653,0.00024799,2]
[328410980,1717362638222,-162.22876526,0.00024799,2]
[328410981,1717362638231,-162.22876526,0.00024799,2]
[328410982,1717362638240,-162.22876526,0.00024799,2]
[328410983,1717362638250,-1044.98058558,0.00024899,2]
[328410984,1717362638260,-644.64661214,0.00024899,2]
[328410985,1717362638270,-6786.64428082,0.000249,2]
[328410986,1717362638280,-500.0,0.000249,2]
[328410987,1717362638289,-155.89027,0.000249,2]
[328410988,1717362638299,-254.427619,0.00024948,2]
[328410989,1717362638308,-325.53303523,0.00025,2]
[328410990,1717362638318,-1250.0,0.00025,2]
[328410991,1717362638328,-254.427619,0.00025252,2]
[328410992,1717362638338,-600.0,0.00025304,2]
[328410993,1717362638349,-162.22876526,0.00025402,2]
[328410994,1717362638358,-254.427619,0.00025557,2]
[328410995,1717362638368,-10281.0,0.00025558,2]
[328410996,1717362638377,-1176.94742698,0.00025684,2]
[328410998,1717362638386,-155.89028,0.0002578,2]
[328411000,1717362638395,-155.0,0.00025784,2]
[328411001,1717362638405,-185.2043417,0.00025784,2]
[328411002,1717362638414,-251.09515456,0.00025785,2]
[328411003,1717362638423,-23495.71417203,0.00026,5]
[328411004,1717362638432,-750.0,0.00026004,2]
[328411005,1717362638442,-167.77928676,0.00026057,2]
[328411006,1717362638451,-400.0,0.00026161,2]
[328411007,1717362638460,-1176.94742693,0.00026501,2]
[328411008,1717362638470,-2053.44124277,0.000266,2]
[328411009,1717362638479,-408.8,0.00026637,2]
[328411010,1717362638489,-162.22876526,0.00026959,2]
[328411011,1717362638498,-411.13886319,0.00026997,2]
[328411012,1717362638507,-1300.0,0.00027,2]
[328411013,1717362638516,-155.89027,0.0002703,2]
[328411014,1717362638525,-150.0,0.00027081,2]
[328411015,1717362638534,-500.0,0.0002723,2]
[328411016,1717362638544,-1176.94742693,0.00027317,2]
[328411017,1717362638553,-806.82910337,0.0002739,2]
[328411018,1717362638568,-150.0,0.00027397,2]
[328411019,1717362638578,-150.0,0.00027425,2]
[328411020,1717362638587,-306.04,0.00027425,2]
[328411021,1717362638597,-150.0,0.00027425,2]
[328411022,1717362638608,-421.9,0.00027425,2]
[328411023,1717362638618,-421.9,0.00027425,2]
[328411024,1717362638627,-150.0,0.00027425,2]
[328411025,1717362638636,-327.47,0.00027425,2]
[328411026,1717362638649,-300.0,0.00027425,2]
[328411027,1717362638659,-421.9,0.00027425,2]
[328411028,1717362638668,-420.42,0.00027425,2]
[328411029,1717362638677,-397.90257012,0.00027517,2]
[328411030,1717362638686,-600.0,0.00027835,2]
[328411031,1717362638696,-150.0,0.00028118,2]
[328411032,1717362638706,-1176.94742693,0.00028134,2]
[328411033,1717362638717,-307.81,0.00028219,2]
[328411034,1717362638726,-155.89028,0.0002828,2]
[328411035,1717362638891,-162.22876526,0.00028516,2]
[328411036,1717362638901,-400.0,0.0002854,2]
[328411037,1717362638911,-150.0,0.00028839,2]
[328411038,1717362638921,-301.76085115,0.00028859,2]
[328411039,1717362638930,-152.0,0.00028862,3]
[328411040,1717362638940,-408.8,0.000289,2]
[328411041,1717362638949,-1176.94742693,0.0002895,2]
[328411042,1717362638958,-409.0,0.00028954,5]
[328411043,1717362638968,-4163.8478063,0.00029,2]
[328411044,1717362638977,-1350.0,0.00029,2]
[328411045,1717362638987,-150.0,0.00029068,2]
[328411046,1717362638997,-310.65,0.00029156,2]
[328411047,1717362639006,-421.9,0.00029156,2]
[328411048,1717362639016,-150.0,0.00029156,2]
[328411049,1717362639026,-150.0,0.00029156,2]
[328411050,1717362639036,-154.54,0.00029156,2]
[328411051,1717362639046,-150.0,0.00029156,2]
[328411052,1717362639057,-150.0,0.00029156,2]
[328411053,1717362639067,-421.9,0.00029156,2]
[328411054,1717362639077,-150.0,0.00029156,2]
[328411055,1717362639087,-150.0,0.00029156,2]
[328411056,1717362639096,-352.8,0.00029156,2]
[328411057,1717362639105,-421.9,0.00029156,2]
[328411058,1717362639115,-150.0,0.00029156,2]
[328411059,1717362639125,-421.9,0.00029156,2]
[328411060,1717362639135,-150.0,0.00029156,2]
[328411061,1717362639144,-150.0,0.00029156,2]
[328411062,1717362639154,-352.8,0.00029156,2]
[328411063,1717362639163,-421.9,0.00029156,2]
[328411064,1717362639173,-328.59,0.00029156,2]
[328411065,1717362639183,-352.8,0.00029156,2]
[328411066,1717362639193,-150.0,0.00029156,2]
[328411067,1717362639202,-150.0,0.00029156,2]
[328411068,1717362639211,-421.9,0.00029156,2]
[328411069,1717362639221,-163.91,0.00029156,2]
[328411070,1717362639230,-163.91,0.00029156,2]
[328411071,1717362639240,-421.9,0.00029156,2]
[328411072,1717362639249,-150.0,0.00029156,2]
[328411073,1717362639259,-352.8,0.00029156,2]
[328411074,1717362639268,-150.0,0.00029156,2]
[328411075,1717362639279,-163.91,0.00029156,2]
[328411076,1717362639289,-352.8,0.00029156,2]
[328411077,1717362639298,-306.96,0.00029156,2]
[328411078,1717362639308,-163.91,0.00029156,2]
[328411079,1717362639317,-352.8,0.00029156,2]
[328411080,1717362639327,-163.91,0.00029156,2]
[328411081,1717362639337,-150.0,0.00029156,2]
[328411082,1717362639347,-352.8,0.00029156,2]
[328411083,1717362639356,-352.8,0.00029156,2]
[328411084,1717362639365,-163.91,0.00029156,2]
[328411085,1717362639375,-352.8,0.00029156,2]
[328411086,1717362639385,-300.0,0.00029156,2]
[328411087,1717362639395,-163.91,0.00029156,2]
[328411088,1717362639404,-163.91,0.00029156,2]
[328411089,1717362639414,-352.8,0.00029156,2]
[328411090,1717362639424,-163.91,0.00029156,2]
[328411091,1717362639434,-163.91,0.00029156,2]
[328411092,1717362639443,-150.0,0.00029242,2]
[328411093,1717362639453,-500.0,0.00029314,3]
[328411094,1717362639463,-304.26284348,0.00029314,3]
[328411095,1717362639474,-500.0,0.00029314,3]
[328411096,1717362639483,-172.0,0.0002936,18]
[328411097,1717362639493,-1500.0,0.00029466,2]
[328411098,1717362639503,-150.0,0.0002954,2]
[328411099,1717362639512,-150.0,0.00029554,2]
[328411100,1717362639522,-150.0,0.0002956,2]
[328411101,1717362639531,-1522.05576886,0.00029561,2]
[328411102,1717362639541,-150.0,0.00029578,2]
[328411103,1717362639551,-150.0,0.00029595,2]
[328411104,1717362639562,-1500.0,0.00029667,2]
[328411105,1717362639573,-300.0,0.00029672,2]
[328411106,1717362639582,-500.0,0.00029759,2]
[328411107,1717362639591,-150.0,0.00029766,2]
[328411108,1717362639600,-1176.94742693,0.00029767,2]
[328411109,1717362639610,-2009.24235392,0.000299,2]
[328411110,1717362639619,-1000.0,0.000299,5]
[328411111,1717362639628,-150.0,0.00029959,2]
[328411112,1717362639637,-150.0,0.00029981,2]
[328411113,1717362639647,-150.0,0.00029981,2]
[328411114,1717362639656,-150.0,0.00029981,2]
[328411115,1717362639665,-150.0,0.00029981,2]
[328411116,1717362639675,-150.0,0.00029981,2]
[328411117,1717362639685,-421.9,0.00029981,2]
[328411118,1717362639694,-150.0,0.00029981,2]
[328411119,1717362639703,-421.9,0.00029981,2]
[328411120,1717362639712,-150.0,0.00029981,2]
[328411121,1717362639723,-150.0,0.00029981,2]
[328411122,1717362639732,-421.9,0.00029981,2]
[328411123,1717362639742,-150.0,0.00029981,2]
[328411124,1717362639751,-352.8,0.00029981,2]
[328411125,1717362639760,-327.68,0.00029981,2]
[328411126,1717362639770,-421.9,0.00029981,2]
[328411127,1717362639779,-150.0,0.00029981,2]
[328411128,1717362639789,-300.0,0.00029981,2]
[328411129,1717362639798,-352.8,0.00029981,2]
[328411130,1717362639808,-150.0,0.00029981,2]
[328411131,1717362639817,-421.9,0.00029981,2]
[328411132,1717362639826,-163.91,0.00029981,2]
[328411133,1717362639835,-352.8,0.00029981,2]
[328411134,1717362639845,-421.9,0.00029981,2]
[328411135,1717362639854,-150.0,0.00029981,2]
[328411136,1717362639863,-163.91,0.00029981,2]
[328411137,1717362639873,-352.8,0.00029981,2]
[328411138,1717362639882,-421.9,0.00029981,2]
[328411139,1717362639892,-150.0,0.00029981,2]
[328411140,1717362639901,-352.8,0.00029981,2]
[328411141,1717362639910,-163.91,0.00029981,2]
[328411142,1717362639919,-3203.2420804,0.00029987,2]
[328411143,1717362639929,-1047.826572,0.00029987,2]
[328411144,1717362639939,-332.791849,0.00029987,2]
[328411145,1717362639948,-350.4613827,0.00029987,2]
[328411146,1717362639958,-1669.2205716,0.00029987,2]
[328411147,1717362639968,-18070.3581839,0.00029987,2]
[328411148,1717362639978,-150.0,0.00029995,2]
[328411149,1717362639988,-19721.30788444,0.0003,3]
[328411150,1717362640003,-708.06201418,0.0003,3]
[328411151,1717362640123,-2043.48422295,0.0003,3]
[328411152,1717362640137,-23133.14538202,0.0003,3]
[328411153,1717362640149,-1685.957726,0.0003,3]
[328411155,1717362641598,-150.0,0.00029988,2]
[328411156,1717362641609,-659.20897533,0.0003,3]
[328411161,1717362641948,-500.1446669,0.0003,3]
[328411195,1717362643578,-3019.74359619,0.0003,3]
[328411197,1717362643590,-1825.98838831,0.0003,3]
[328411200,1717362643601,-4767.05993806,0.0003,3]
[328411208,1717362643673,-372.86000006,0.0003,3]
[328411210,1717362643686,-31122.93866475,0.0003,3]
[328411213,1717362643698,-46888.03356488,0.0003,3]
[328411215,1717362643708,-5910.056556,0.0003,2]
[328411217,1717362643717,-10525.0,0.0003,4]
[328411219,1717362643728,-11853.73160304,0.0003,2]
[328411221,1717362643737,-2346.22985655,0.0003,4]
[328411223,1717362643747,-1499.09,0.0003,2]
[328411225,1717362643756,-1268.29,0.0003,2]
[328411227,1717362643765,-2235.03769815,0.0003,3]
[328411229,1717362643775,-372.0,0.0003,7]
[328411231,1717362643783,-1000.0,0.0003,7]
[328411233,1717362643793,-958.91343462,0.0003,4]
[328411235,1717362643802,-5000.0,0.0003,7]
[328411237,1717362643811,-5702.70709465,0.0003,2]
[328411239,1717362643821,-6430.26639955,0.0003,2]
[328411241,1717362643830,-345.0,0.0003,2]
[328411243,1717362643839,-150.0,0.0003,2]
[328411245,1717362643848,-200.0,0.0003,2]
[328411246,1717362643857,-2516.873992,0.0003,5]
[328411248,1717362643866,-150.0,0.0003,6]
[328411250,1717362643876,-162.22876526,0.00030074,15]
[328411252,1717362643884,-151.68,0.00030075,2]